bitfinex/quotes_SOLUSD_20241214
["timestamp","ask_amount","ask_price","bid_price","bid_amount"]
[1734188166614,1.5836,221.99,221.85,20.0]
[1734188166615,6.127,221.97,221.85,28.58111875]
[1734188167404,6.127,221.97,221.85,20.0]
[1734188167607,6.127,221.97,221.86,8.58111875]
[1734188168608,6.127,221.97,221.87,8.58111875]
[1734188172822,6.127,221.97,221.9,8.58111875]
[1734188174095,6.127,221.97,221.91,8.58111875]
[1734188174325,1.5836,221.99,221.92,8.58111875]
[1734188174526,1.5836,221.99,221.87,45.592075]
[1734188174527,1.5836,221.99,221.91,8.58111875]
[1734188174717,1.5836,221.99,221.86,0.67594745]
[1734188175023,1.5836,221.99,221.85,20.0]
[1734188175024,1.5836,221.99,221.88,8.58111875]
[1734188177940,1.5836,221.99,221.91,8.58111875]
[1734188180002,1.5836,221.99,221.92,8.58111875]
[1734188181339,1.5836,221.99,221.9,8.58111875]
[1734188181840,1.5836,221.99,221.91,8.58111875]
[1734188184020,1.5836,221.99,221.85,31.2684]
[1734188184227,21.5836,221.99,221.88,8.58111875]
[1734188186426,21.5836,221.99,221.89,8.58111875]
[1734188192513,21.5836,221.99,221.88,8.58111875]
[1734188193728,21.5836,221.99,221.89,8.58111875]
[1734188194033,21.5836,221.99,221.88,8.58111875]
[1734188195435,21.5836,221.99,221.89,8.58111875]
[1734188196408,21.5836,221.99,221.86,23.902374]
[1734188196611,21.5836,221.99,221.89,8.58111875]
[1734188196959,21.5836,221.99,221.88,8.58111875]
[1734188200725,21.5836,221.99,221.89,8.58111875]
[1734188201421,21.5836,221.99,221.88,8.58111875]
[1734188202442,28.65541224,221.99,221.88,8.58111875]
[1734188202659,21.5836,221.99,221.88,8.58111875]
[1734188206423,21.5836,221.99,221.86,23.902374]
[1734188206623,21.5836,221.99,221.88,8.58111875]
[1734188207420,21.5836,221.99,221.89,8.58111875]
[1734188209640,1.5836,221.99,221.92,8.58111875]
[1734188211045,1.5836,221.99,221.91,8.58111875]
[1734188214562,1.5836,221.99,221.9,8.58111875]
[1734188216962,1.5836,221.99,221.91,8.58111875]
[1734188217544,1.5836,221.99,221.93,8.58111875]
[1734188217762,1.5836,221.99,221.94,8.58111875]
[1734188219944,1.5836,221.99,221.93,8.58111875]
[1734188223171,6.127,222.03,221.95,8.58111875]
[1734188223379,7.07181224,222.06,221.99,8.58111875]
[1734188223679,7.07181224,222.07,222.0,8.58111875]
[1734188223968,14.96311224,222.09,222.0,8.58111875]
[1734188224379,7.8913,222.09,222.0,8.58111875]
[1734188226177,7.8913,222.09,221.98,8.58111875]
[1734188229987,7.8913,222.09,221.93,23.902374]
[1734188230175,7.8913,222.09,221.96,28.58111875]
[1734188233079,7.8913,222.09,221.97,8.58111875]
[1734188233458,7.8913,222.09,221.98,8.58111875]
[1734188233657,7.8913,222.09,221.97,8.58111875]
[1734188237701,7.8913,222.09,221.96,20.0]
[1734188237999,7.8913,222.09,221.97,8.58111875]
[1734188240196,10.54673637,222.09,221.97,8.58111875]
[1734188240703,7.8913,222.09,221.97,8.58111875]
[1734188241479,7.8913,222.09,221.98,8.58111875]
[1734188242204,7.8913,222.09,221.96,20.0]
[1734188242205,7.8913,222.09,221.99,8.58111875]
[1734188243774,7.8913,222.09,221.98,8.58111875]
[1734188256428,7.8913,222.09,221.93,0.12549]
[1734188256719,7.8913,222.09,221.96,8.58111875]
[1734188257389,7.8913,222.09,221.95,20.0]
[1734188257589,7.8913,222.09,221.96,8.58111875]
[1734188257902,7.8913,222.09,221.95,20.0]
[1734188258084,7.8913,222.09,221.97,8.58111875]
[1734188262523,7.8913,222.09,221.95,20.0]
[1734188262825,7.8913,222.09,221.97,8.58111875]
[1734188263026,7.8913,222.09,221.98,8.58111875]
[1734188263436,7.8913,222.09,221.93,0.12549]
[1734188263437,20.0,222.06,221.93,0.12549]
[1734188263799,6.5249,222.04,221.88,5.97922623]
[1734188264001,6.5249,222.04,221.91,8.58111875]
[1734188264216,6.5249,222.04,221.93,8.58111875]
[1734188264700,6.5249,222.04,221.94,8.58111875]
[1734188266409,6.5249,222.04,221.94,0.12549]
[1734188268530,6.5249,222.04,221.93,0.12549]
[1734188271938,20.0,222.01,221.93,0.12549]
[1734188273035,20.0,222.01,221.92,0.12549]
[1734188274527,20.0,222.01,221.92,23.902374]
[1734188277255,6.5249,222.04,221.94,0.12549]
[1734188277534,6.5249,222.04,221.95,23.902374]
[1734188278041,6.5249,222.04,221.96,0.12549]
[1734188278917,6.5249,222.04,221.92,23.902374]
[1734188279122,6.5249,222.04,221.93,0.12549]
[1734188279851,6.5249,222.04,221.92,0.25098]
[1734188282124,6.5249,222.04,221.93,23.776884]
[1734188283346,6.5249,222.04,221.94,0.25098]
[1734188283557,6.5249,222.04,221.96,0.25098]
[1734188286342,1.5894,222.05,221.98,0.12549]
[1734188286645,1.5894,222.05,221.98,32.60898275]
[1734188286817,1.5894,222.05,221.98,24.027864]
[1734188287015,1.5894,222.05,221.97,24.027864]
[1734188289743,6.2795,222.09,222.0,8.70660875]
[1734188289942,6.2795,222.09,222.01,24.027864]
[1734188290643,6.2795,222.09,222.0,24.027864]
[1734188292740,6.2795,222.09,222.0,32.60898275]
[1734188295755,6.2795,222.09,222.0,24.027864]
[1734188298256,6.2795,222.09,222.0,32.60898275]
[1734188298655,1.5318,222.1,222.0,32.60898275]
[1734188298834,1.5318,222.1,222.02,24.027864]
[1734188299534,1.5318,222.1,222.01,24.027864]
[1734188310961,1.5318,222.1,222.01,32.60898275]
[1734188318980,1.5318,222.1,222.06,0.12549]
[1734188321050,0.3215411,222.15,222.09,23.902374]
[1734188321280,0.3215411,222.15,222.1,0.12549]
[1734188324876,0.3215411,222.15,222.09,23.902374]
[1734188325088,0.3215411,222.15,222.06,8.58111875]
[1734188325679,0.3215411,222.15,222.07,0.12549]
[1734188326579,0.3215411,222.15,222.07,0.25098]
[1734188326972,0.3215411,222.15,222.06,23.776884]
[1734188327179,0.3215411,222.15,222.05,0.12549]
[1734188327559,0.3215411,222.15,222.05,0.25098]
[1734188332578,20.3215411,222.15,222.05,0.25098]
[1734188332786,20.3215411,222.15,222.05,8.83209875]
[1734188332989,20.3215411,222.15,222.06,23.776884]
[1734188333705,0.3215411,222.15,222.06,23.776884]
[1734188334496,20.3215411,222.15,222.06,23.776884]
[1734188334866,20.3215411,222.15,222.05,24.027864]
[1734188335484,20.0,222.14,222.05,24.027864]
[1734188337291,20.0,222.14,222.05,23.902374]
[1734188338397,7.8478,222.12,222.03,23.776884]
[1734188338582,7.8478,222.12,222.03,0.12549]
[1734188339070,7.8478,222.12,222.03,0.25098]
[1734188339994,7.8478,222.12,221.93,7.02390297]
[1734188339995,20.0,222.09,221.93,7.02390297]
[1734188340176,20.0,222.09,221.99,8.58111875]
[1734188340377,20.0,222.09,221.99,0.12549]
[1734188341187,20.0,222.09,221.99,24.027864]
[1734188343991,20.0,222.09,221.99,23.776884]
[1734188344296,7.07181224,222.1,221.99,23.776884]
[1734188344297,20.0,222.07,221.99,23.776884]
[1734188344483,20.0,222.07,221.97,23.902374]
[1734188344679,20.0,222.07,221.98,0.12549]
[1734188345086,20.0,222.07,221.99,23.776884]
[1734188345482,20.0,222.07,221.98,0.12549]
[1734188346176,21.5707,222.08,221.98,0.12549]
[1734188347181,20.0,222.07,221.98,0.12549]
[1734188347707,21.5707,222.08,221.98,0.12549]
[1734188348875,20.0,222.07,221.98,0.12549]
[1734188350097,21.5707,222.08,221.98,0.12549]
[1734188357902,1.5707,222.08,221.98,0.12549]
[1734188373910,6.1721,222.07,221.91,1.5368]
[1734188374121,20.0,222.04,221.92,8.58111875]
[1734188374329,20.0,222.04,221.93,0.12549]
[1734188374525,20.0,222.04,221.93,8.70660875]
[1734188375211,20.0,222.04,221.94,23.902374]
[1734188376910,1.6526,222.03,221.94,23.902374]
[1734188377110,1.6526,222.03,221.88,6.6533]
[1734188377325,1.6526,222.03,221.89,8.58111875]
[1734188377537,1.6526,222.03,221.9,0.12549]
[1734188377710,6.4718,222.02,221.88,8.58111875]
[1734188378453,20.0,221.99,221.89,0.12549]
[1734188379638,20.0,221.99,221.9,0.12549]
[1734188382938,20.0,221.99,221.89,23.776884]
[1734188383128,1.6526,221.98,221.89,23.776884]
[1734188383436,1.6526,221.98,221.88,23.902374]
[1734188383641,1.6526,221.98,221.89,0.12549]
[1734188388115,1.6526,221.98,221.88,23.776884]
[1734188388315,6.3805,221.97,221.88,23.776884]
[1734188388635,20.0,221.94,221.82,8.58111875]
[1734188388849,20.0,221.94,221.78,0.12549]
[1734188389050,20.0,221.94,221.83,0.12549]
[1734188389227,20.0,221.94,221.82,8.58111875]
[1734188390316,20.0,221.94,221.83,24.027864]
[1734188391220,1.6365,221.93,221.83,23.902374]
[1734188391544,1.6365,221.93,221.83,23.776884]
[1734188392239,1.6365,221.93,221.82,0.12549]
[1734188392447,1.6365,221.93,221.81,23.776884]
[1734188392645,1.6365,221.93,221.8,23.776884]
[1734188392818,1.6365,221.93,221.81,0.12549]
[1734188394816,1.6365,221.93,221.8,23.776884]
[1734188395046,1.6365,221.93,221.76,8.58111875]
[1734188395047,20.0,221.89,221.76,8.58111875]
[1734188395417,20.0,221.89,221.77,0.12549]
[1734188395624,20.0,221.89,221.76,8.58111875]
[1734188396150,1.5814,221.88,221.71,6.6355]
[1734188396324,21.5814,221.88,221.71,6.6355]
[1734188396526,20.0,221.84,221.74,0.12549]
[1734188396735,20.0,221.84,221.73,8.58111875]
[1734188396932,20.0,221.84,221.71,8.58111875]
[1734188397329,20.0,221.84,221.67,5.69472286]
[1734188397330,1.5814,221.83,221.67,5.69472286]
[1734188397520,1.5814,221.83,221.7,8.58111875]
[1734188397842,1.5814,221.83,221.71,0.12549]
[1734188398144,1.5814,221.83,221.7,8.58111875]
[1734188398550,1.5814,221.83,221.71,0.12549]
[1734188398714,1.5814,221.83,221.7,8.58111875]
[1734188400130,1.5814,221.83,221.67,0.12549]
[1734188400339,1.5814,221.83,221.68,8.58111875]
[1734188400340,20.0,221.82,221.68,8.58111875]
[1734188400551,6.0169,221.81,221.68,8.58111875]
[1734188400841,20.0,221.78,221.61,12.27912286]
[1734188401143,1.5814,221.77,221.65,8.58111875]
[1734188401738,1.5814,221.77,221.6,0.12549]
[1734188401925,1.5814,221.77,221.59,0.8844524]
[1734188401926,1.5814,221.77,221.64,0.12549]
[1734188402237,20.0,221.78,221.59,0.2078293]
[1734188402238,0.12549,221.75,221.59,0.2078293]
[1734188402427,20.0,221.72,221.59,0.2078293]
[1734188402626,7.5983,221.71,221.59,0.2078293]
[1734188402929,20.0,221.68,221.59,0.2078293]
[1734188403232,20.0,221.68,221.6,8.58111875]
[1734188403447,1.5814,221.71,221.65,8.58111875]
[1734188403848,7.5983,221.76,221.68,8.58111875]
[1734188404357,7.5983,221.76,221.68,23.902374]
[1734188404565,7.5983,221.76,221.67,23.776884]
[1734188404771,7.5983,221.76,221.66,23.776884]
[1734188405562,7.5983,221.76,221.65,23.776884]
[1734188405767,20.0,221.73,221.64,23.776884]
[1734188405948,20.0,221.73,221.61,8.58111875]
[1734188406153,20.0,221.73,221.65,8.58111875]
[1734188406559,20.0,221.73,221.6,0.12549]
[1734188406741,20.0,221.73,221.63,8.58111875]
[1734188407549,20.0,221.73,221.62,8.58111875]
[1734188407954,20.0,221.73,221.65,8.70660875]
[1734188408156,20.0,221.73,221.67,23.902374]
[1734188408362,20.0,221.73,221.67,0.12549]
[1734188410370,20.0,221.73,221.67,0.25098]
[1734188412054,20.0,221.73,221.66,23.776884]
[1734188412256,20.0,221.73,221.63,8.58111875]
[1734188412478,20.0,221.73,221.6,0.12549]
[1734188412653,20.0,221.73,221.61,8.58111875]
[1734188413374,20.0,221.73,221.62,8.70660875]
[1734188413570,20.0,221.73,221.65,0.12549]
[1734188413778,20.0,221.73,221.65,8.70660875]
[1734188414262,20.0,221.73,221.66,23.776884]
[1734188414777,20.0,221.73,221.65,23.902374]
[1734188415159,20.0,221.73,221.66,0.12549]
[1734188415475,20.0,221.73,221.65,23.776884]
[1734188415656,20.0,221.73,221.64,0.12549]
[1734188418253,20.0,221.73,221.63,23.776884]
[1734188418479,20.0,221.73,221.6,23.902374]
[1734188419061,20.0,221.73,221.6,32.48349275]
[1734188419282,20.0,221.73,221.63,8.70660875]
[1734188419456,20.0,221.73,221.65,24.027864]
[1734188422470,20.0,221.73,221.65,32.60898275]
[1734188423782,20.0,221.73,221.65,24.027864]
[1734188425280,7.5983,221.76,221.67,8.70660875]
[1734188425485,7.5983,221.76,221.65,24.027864]
[1734188425486,1.5814,221.76,221.7,0.12549]
[1734188425668,8.1761,221.81,221.71,23.902374]
[1734188426682,8.1761,221.81,221.71,0.12549]
[1734188426983,8.1761,221.81,221.7,0.12549]
[1734188427391,8.1761,221.81,221.69,0.25098]
[1734188428684,20.0,221.78,221.68,23.776884]
[1734188428878,20.0,221.78,221.63,7.9944]
[1734188428879,20.0,221.78,221.67,23.776884]
[1734188429272,20.0,221.78,221.68,0.12549]
[1734188430194,20.0,221.78,221.68,8.70660875]
[1734188430371,20.0,221.78,221.7,0.12549]
[1734188432483,20.0,221.78,221.69,23.776884]
[1734188432792,20.0,221.78,221.68,23.776884]
[1734188436167,20.0,221.78,221.68,32.35800275]
[1734188436773,20.0,221.78,221.69,0.12549]
[1734188438667,20.0,221.78,221.68,32.35800275]
[1734188438978,20.0,221.78,221.69,0.12549]
[1734188440183,20.0,221.78,221.71,8.58111875]
[1734188441388,8.1761,221.81,221.74,32.48349275]
[1734188441389,1.5178,221.81,221.74,32.48349275]
[1734188441699,1.5178,221.81,221.75,32.48349275]
[1734188442403,1.5178,221.81,221.75,23.902374]
[1734188444184,1.5178,221.81,221.73,23.776884]
[1734188444389,1.5178,221.81,221.73,0.25098]
[1734188444733,1.5178,221.81,221.73,8.83209875]
[1734188444912,1.5178,221.81,221.74,23.776884]
[1734188447893,20.0,221.83,221.75,8.83209875]
[1734188448098,20.0,221.83,221.77,24.027864]
[1734188452009,7.8876,221.86,221.77,24.027864]
[1734188453499,7.8876,221.86,221.77,32.60898275]
[1734188453709,1.6549,221.86,221.8,23.776884]
[1734188453890,1.6549,221.86,221.81,0.12549]
[1734188454786,1.6549,221.86,221.81,0.25098]
[1734188456992,1.6549,221.86,221.81,0.12549]
[1734188457213,1.6549,221.86,221.79,23.776884]
[1734188457413,1.6549,221.86,221.77,23.902374]
[1734188457595,1.6549,221.86,221.78,0.12549]
[1734188458411,1.6549,221.86,221.77,0.25098]
[1734188458605,1.6549,221.86,221.77,0.12549]
[1734188458804,1.6549,221.86,221.76,0.25098]
[1734188464011,1.6549,221.86,221.76,0.12549]
[1734188464218,20.0,221.82,221.71,8.58111875]
[1734188464602,20.0,221.82,221.72,0.12549]
[1734188465611,20.0,221.82,221.74,0.12549]
[1734188475124,20.0,221.82,221.66,11.95436077]
[1734188475125,20.0,221.82,221.65,13.90222648]
[1734188475331,1.6607,221.8,221.68,8.58111875]
[1734188475631,1.6607,221.8,221.7,0.12549]
[1734188476144,1.6607,221.8,221.69,0.25098]
[1734188476918,1.6607,221.8,221.65,1.5478]
[1734188477197,20.0,221.76,221.65,8.58111875]
[1734188478202,20.0,221.76,221.66,24.027864]
[1734188478817,20.0,221.76,221.6,8.85292064]
[1734188479030,20.0,221.76,221.64,8.58111875]
[1734188479346,20.0,221.76,221.65,0.12549]
[1734188479715,20.0,221.76,221.64,8.58111875]
[1734188480137,20.0,221.76,221.66,0.12549]
[1734188481409,20.0,221.76,221.65,20.932374]
[1734188487339,20.0,221.76,221.65,29.51349275]
[1734188487858,1.5513,221.75,221.61,23.902374]
[1734188488014,21.5513,221.75,221.6,0.25098]
[1734188488216,20.0,221.71,221.59,0.2078293]
[1734188488411,20.0,221.71,221.59,8.78894805]
[1734188488639,20.0,221.71,221.6,0.12549]
[1734188488842,20.0,221.71,221.64,8.58111875]
[1734188489217,6.2432,221.74,221.65,0.12549]
[1734188489423,6.2432,221.74,221.65,24.027864]
[1734188489731,6.2432,221.74,221.65,32.60898275]
[1734188492040,6.2432,221.74,221.64,23.902374]
[1734188492242,6.2432,221.74,221.64,0.25098]
[1734188492833,6.2432,221.74,221.63,23.776884]
[1734188493146,6.2432,221.74,221.62,23.776884]
[1734188493518,6.2432,221.74,221.62,32.35800275]
[1734188494345,6.2432,221.74,221.62,23.776884]
[1734188494516,6.2432,221.74,221.62,32.35800275]
[1734188494947,20.0,221.71,221.62,32.35800275]
[1734188495331,20.0,221.71,221.62,23.776884]
[1734188498454,20.0,221.71,221.62,32.35800275]
[1734188499335,20.0,221.71,221.62,23.776884]
[1734188501717,20.0,221.71,221.62,32.35800275]
[1734188502124,20.0,221.71,221.63,8.83209875]
[1734188502334,20.0,221.71,221.64,8.58111875]
[1734188502623,20.0,221.71,221.63,0.25098]
[1734188502952,20.0,221.71,221.63,8.83209875]
[1734188503123,20.0,221.71,221.64,23.776884]
[1734188503527,20.0,221.71,221.63,24.027864]
[1734188504140,20.0,221.71,221.63,0.25098]
[1734188505349,20.0,221.71,221.62,0.25098]
[1734188505561,20.0,221.71,221.59,0.2078293]
[1734188505859,20.0,221.71,221.59,23.9847133]
[1734188506022,20.0,221.71,221.59,0.2078293]
[1734188506223,1.592,221.7,221.59,0.2078293]
[1734188506453,1.592,221.7,221.6,0.12549]
[1734188506662,1.592,221.7,221.6,8.70660875]
[1734188506829,1.592,221.7,221.62,0.12549]
[1734188507022,1.592,221.7,221.62,8.70660875]
[1734188507453,1.592,221.7,221.62,0.12549]
[1734188507649,1.592,221.7,221.62,23.902374]
[1734188510047,1.592,221.7,221.61,23.902374]
[1734188510256,1.592,221.7,221.62,0.12549]
[1734188511355,1.592,221.7,221.61,0.25098]
[1734188511925,1.592,221.7,221.6,23.776884]
[1734188512133,1.592,221.7,221.6,8.70660875]
[1734188512862,1.592,221.7,221.61,23.902374]
[1734188513155,1.592,221.7,221.62,0.12549]
[1734188515559,1.592,221.7,221.59,8.78894805]
[1734188515762,1.592,221.7,221.6,23.902374]
[1734188516258,1.592,221.7,221.6,0.25098]
[1734188518278,1.592,221.7,221.59,0.2078293]
[1734188518869,20.0,221.66,221.59,0.2078293]
[1734188519879,1.5443,221.65,221.59,0.2078293]
[1734188524974,21.5443,221.65,221.59,0.2078293]
[1734188525550,20.0,221.61,221.59,0.2078293]
[1734188525746,6.4829,221.63,221.59,0.2078293]
[1734188525747,20.0,221.6,221.59,0.2078293]
[1734188536081,1.5443,221.65,221.59,0.2078293]
[1734188536657,20.0,221.64,221.59,0.2078293]
[1734188537396,1.5443,221.65,221.59,0.2078293]
[1734188550397,21.5443,221.65,221.59,0.2078293]
[1734188550986,1.5443,221.65,221.59,0.2078293]
[1734188552411,21.5443,221.65,221.59,0.2078293]
[1734188553100,1.5443,221.65,221.59,0.2078293]
[1734188555322,21.5443,221.65,221.59,0.2078293]
[1734188556208,20.0,221.65,221.59,0.2078293]
[1734188558205,20.0,221.66,221.59,0.2078293]
[1734188559692,20.0,221.65,221.59,0.2078293]
[1734188560216,20.0,221.66,221.59,0.2078293]
[1734188560606,20.0,221.65,221.59,0.2078293]
[1734188564409,20.0,221.64,221.59,0.2078293]
[1734188565312,20.0,221.63,221.59,0.2078293]
[1734188566503,20.0,221.61,221.59,0.2078293]
[1734188567414,20.0,221.6,221.59,0.2078293]
[1734188576826,34.00628741,221.6,221.59,0.2078293]
[1734188577215,20.0,221.6,221.51,6.3035]
[1734188577418,20.0,221.56,221.46,7.8485]
[1734188577828,20.0,221.55,221.46,7.8485]
[1734188578516,20.0,221.52,221.46,7.8485]
[1734188579323,7.07353899,221.55,221.4,6.2212]
[1734188579324,20.0,221.53,221.4,6.2212]
[1734188579526,20.0,221.52,221.4,6.2212]
[1734188579715,20.0,221.5,221.4,6.2212]
[1734188580201,20.0,221.49,221.4,6.2212]
[1734188581007,20.0,221.49,221.41,0.12549]
[1734188581202,20.0,221.52,221.41,8.70660875]
[1734188581917,20.0,221.53,221.43,0.12549]
[1734188582311,20.0,221.54,221.43,0.12549]
[1734188583025,20.0,221.54,221.44,8.70660875]
[1734188583322,1.79836538,221.56,221.45,1.6273]
[1734188583514,7.07353899,221.57,221.45,1.6273]
[1734188584406,20.0,221.54,221.45,1.6273]
[1734188585606,20.0,221.55,221.46,6.2212]
[1734188587310,20.0,221.56,221.46,6.2212]
[1734188588007,20.0,221.58,221.46,6.2212]
[1734188588209,7.07353899,221.62,221.49,8.58111875]
[1734188588424,7.07353899,221.63,221.49,8.58111875]
[1734188588724,7.07353899,221.63,221.48,1.6273]
[1734188589511,20.0,221.61,221.48,1.6273]
[1734188589709,20.0,221.6,221.49,0.25098]
[1734188589907,20.0,221.61,221.49,0.25098]
[1734188590411,20.0,221.6,221.49,0.12549]
[1734188591023,20.0,221.61,221.49,0.12549]
[1734188591425,7.07353899,221.64,221.53,0.12549]
[1734188591726,7.07353899,221.65,221.53,8.70660875]
[1734188591906,7.07353899,221.68,221.55,6.2212]
[1734188592514,8.90618686,221.69,221.55,6.2212]
[1734188593122,8.90618686,221.69,221.56,1.6273]
[1734188594417,20.0,221.66,221.56,1.6273]
[1734188595130,7.07353899,221.69,221.59,8.58111875]
[1734188595317,7.07353899,221.7,221.62,1.6273]
[1734188595525,7.07353899,221.7,221.62,10.20841875]
[1734188595720,7.07353899,221.71,221.63,0.12549]
[1734188595927,7.07353899,221.74,221.63,8.70660875]
[1734188596129,7.07353899,221.76,221.63,8.70660875]
[1734188596337,1.80278817,221.77,221.63,8.70660875]
[1734188596338,7.07353899,221.77,221.63,8.70660875]
[1734188596536,7.07353899,221.77,221.64,8.58111875]
[1734188596717,7.07353899,221.79,221.65,8.58111875]
[1734188597411,7.07353899,221.8,221.65,8.58111875]
[1734188598231,15.65465799,221.8,221.65,8.58111875]
[1734188598433,20.0,221.77,221.65,8.58111875]
[1734188599826,20.0,221.77,221.66,0.12549]
[1734188600138,20.0,221.77,221.67,6.6237]
[1734188602021,20.0,221.77,221.68,1.6244]
[1734188602835,20.0,221.79,221.68,1.6244]
[1734188603228,20.0,221.78,221.68,1.6244]
[1734188604920,20.0,221.79,221.69,8.70660875]
[1734188605238,4.06519669,221.82,221.7,8.58111875]
[1734188605637,4.06519669,221.82,221.69,8.70660875]
[1734188606037,4.06519669,221.82,221.69,0.12549]
[1734188606247,4.06519669,221.82,221.68,1.6244]
[1734188606631,20.0,221.8,221.68,1.6244]
[1734188610429,20.0,221.8,221.69,24.153354]
[1734188610660,1.78078866,221.83,221.74,1.6244]
[1734188610863,22.10256969,221.87,221.77,8.58111875]
[1734188611156,8.00176638,221.95,221.8,16.82921875]
[1734188611335,83.008,222.05,221.76,0.12549]
[1734188611336,8.581119,221.92,221.84,8.2481]
[1734188611539,1.84598524,222.02,221.84,16.82921875]
[1734188611737,88.67858858,222.03,221.85,8.58111875]
[1734188611927,18.027796,222.0,221.85,8.58111875]
[1734188612257,4.0000935,222.03,221.85,8.58111875]
[1734188612258,0.12549,222.02,221.85,8.58111875]
[1734188612552,18.026783,222.02,221.86,24.027864]
[1734188612755,4.0000935,222.03,221.86,24.027864]
[1734188612959,20.0,222.01,221.84,8.2481]
[1734188613131,20.0,222.0,221.84,8.2481]
[1734188613531,20.0,221.99,221.85,0.12549]
[1734188613756,20.0,221.99,221.85,8.70660875]
[1734188614155,20.0,221.99,221.87,0.12549]
[1734188614328,5.78972246,222.03,221.87,0.12549]
[1734188614526,23.81511746,222.03,221.87,0.12549]
[1734188615658,20.0,221.99,221.87,0.12549]
[1734188616947,20.0,221.99,221.85,23.776884]
[1734188617735,20.0,221.99,221.86,0.12549]
[1734188617965,20.0,221.99,221.86,8.70660875]
[1734188618856,20.0,221.99,221.87,8.58111875]
[1734188619949,20.0,222.0,221.88,0.12549]
[1734188620261,20.0,222.01,221.89,16.24871875]
[1734188620461,24.027864,222.04,221.89,16.24871875]
[1734188620668,20.0,222.01,221.89,7.6676]
[1734188622972,23.902374,222.0,221.89,7.6676]
[1734188623139,20.0,221.97,221.89,7.6676]
[1734188624140,23.902374,222.0,221.84,1.6282]
[1734188624141,20.0,221.93,221.84,1.6282]
[1734188626358,20.0,221.93,221.84,7.6676]
[1734188628573,1.85039177,221.95,221.84,7.6676]
[1734188628797,0.12549,222.0,221.84,16.24871875]
[1734188628979,24.027864,222.0,221.84,16.24871875]
[1734188630171,20.0,221.97,221.84,16.24871875]
[1734188630990,20.0,221.97,221.84,7.6676]
[1734188632491,20.0,221.93,221.84,7.6676]
[1734188640081,20.0,221.89,221.84,7.6676]
[1734188640673,20.0,221.93,221.84,7.6676]
[1734188641091,20.0,221.94,221.84,7.6676]
[1734188641517,20.0,221.97,221.84,7.6676]
[1734188642680,43.902374,221.98,221.84,7.6676]
[1734188642881,20.0,221.97,221.84,7.6676]
[1734188643082,20.0,221.95,221.84,7.6676]
[1734188643337,0.12549,221.94,221.84,7.6676]
[1734188643481,20.0,221.91,221.84,7.6676]
[1734188643993,0.12549,221.94,221.84,7.6676]
[1734188644193,20.0,221.91,221.84,7.6676]
[1734188644617,0.12549,221.94,221.84,7.6676]
[1734188644992,23.902374,221.94,221.84,7.6676]
[1734188645190,20.0,221.91,221.84,7.6676]
[1734188648217,20.0,221.98,221.84,7.6676]
[1734188649129,0.12549,221.97,221.84,7.6676]
[1734188649333,20.0,221.92,221.84,7.6676]
[1734188650491,20.0,221.95,221.84,7.6676]
[1734188650690,20.0,221.91,221.84,7.6676]
[1734188653011,21.77328277,221.91,221.84,7.6676]
[1734188653437,23.902374,221.9,221.84,7.6676]
[1734188653730,20.0,221.87,221.84,7.6676]
[1734188654401,1.77328277,221.91,221.84,7.6676]
[1734188654603,0.12549,221.93,221.84,7.6676]
[1734188654963,44.027864,221.93,221.84,7.6676]
[1734188655329,6.93379997,221.96,221.84,7.6676]
[1734188655496,1.8082484,221.96,221.84,7.6676]
[1734188655695,16.98521849,221.97,221.84,7.6676]
[1734188655901,6.93379997,221.99,221.86,8.58111875]